bitfinex/quotes_BTCUSD_20251114
["timestamp","ask_amount","ask_price","bid_price","bid_amount"]
[1763157673420,0.02078802,95289.0,95288.0,4.688e-05]
[1763157674077,0.00124722,95289.0,95288.0,4.688e-05]
[1763157674248,0.02078565,95289.0,95288.0,4.688e-05]
[1763157674655,0.00024722,95289.0,95288.0,4.688e-05]
[1763157679108,0.01979347,95289.0,95288.0,4.688e-05]
[1763157679437,0.06321221,95289.0,95288.0,4.688e-05]
[1763157679728,0.38621221,95289.0,95288.0,4.688e-05]
[1763157679926,0.41777077,95289.0,95288.0,4.688e-05]
[1763157680747,0.58601077,95289.0,95288.0,4.688e-05]
[1763157681129,0.58701077,95289.0,95288.0,4.688e-05]
[1763157681328,0.58801077,95289.0,95288.0,4.688e-05]
[1763157681549,0.58701077,95289.0,95288.0,4.688e-05]
[1763157681862,0.58801077,95289.0,95288.0,4.688e-05]
[1763157682931,0.50389077,95289.0,95288.0,4.688e-05]
[1763157684900,0.41977077,95289.0,95288.0,4.688e-05]
[1763157687696,0.03355856,95289.0,95288.0,4.688e-05]
[1763157689066,0.03155856,95289.0,95288.0,4.688e-05]
[1763157689270,0.03255856,95289.0,95288.0,4.688e-05]
[1763157689448,0.03355856,95289.0,95288.0,4.688e-05]
[1763157689781,0.03255856,95289.0,95288.0,4.688e-05]
[1763157690230,0.03355856,95289.0,95288.0,4.688e-05]
[1763157690608,0.03255856,95289.0,95288.0,4.688e-05]
[1763157690810,0.35655856,95289.0,95288.0,4.688e-05]
[1763157690986,0.325,95289.0,95288.0,4.688e-05]
[1763157691188,0.324,95289.0,95288.0,4.688e-05]
[1763157691399,0.325,95289.0,95288.0,4.688e-05]
[1763157691621,0.324,95289.0,95288.0,4.688e-05]
[1763157693715,0.001,95289.0,95288.0,4.688e-05]
[1763157694837,0.09457209,95296.0,95288.0,4.688e-05]
[1763157699710,0.34265476,95295.0,95288.0,4.688e-05]
[1763157700078,0.01965476,95294.0,95288.0,4.688e-05]
[1763157700293,0.01965476,95293.0,95288.0,4.688e-05]
[1763157700502,0.019658,95292.0,95288.0,4.688e-05]
[1763157700726,0.103778,95291.0,95288.0,4.688e-05]
[1763157700944,0.019658,95290.0,95288.0,4.688e-05]
[1763157702049,0.40712,95289.0,95288.0,4.688e-05]
[1763157702270,0.426778,95289.0,95288.0,0.03377688]
[1763157702482,0.342658,95289.0,95288.0,0.03377688]
[1763157703382,0.019658,95289.0,95288.0,0.03377688]
[1763157704424,0.019658,95289.0,95288.0,0.03477688]
[1763157707261,0.09457209,95294.0,95288.0,0.03477688]
[1763157707469,0.01964605,95293.0,95288.0,0.03477688]
[1763157707672,0.01964605,95292.0,95289.0,0.14690882]
[1763157707868,0.09457209,95294.0,95289.0,0.14690882]
[1763157708125,0.01964588,95293.0,95290.0,0.03373]
[1763157708333,0.09457209,95294.0,95290.0,0.03373]
[1763157708541,0.01964327,95293.0,95290.0,0.03373]
[1763157708740,0.09457209,95294.0,95290.0,0.03373]
[1763157708954,0.01964328,95293.0,95290.0,0.03373]
[1763157709175,0.09457209,95294.0,95290.0,0.03373]
[1763157710213,0.09457209,95294.0,95289.0,0.14690882]
[1763157710346,0.09457209,95294.0,95290.0,0.03473]
[1763157710659,0.08412,95293.0,95290.0,0.001]
[1763157710870,0.08412,95293.0,95289.0,0.14690882]
[1763157711067,0.01964052,95292.0,95289.0,0.14690882]
[1763157711272,0.08412,95293.0,95290.0,0.001]
[1763157711273,0.01964052,95291.0,95290.0,0.001]
[1763157711468,0.08412,95293.0,95290.0,0.001]
[1763157711681,0.01964204,95292.0,95289.0,0.14690882]
[1763157711874,0.08412,95293.0,95289.0,0.14690882]
[1763157712138,0.01964204,95292.0,95289.0,0.14690882]
[1763157712341,0.08412,95293.0,95289.0,0.14690882]
[1763157713269,0.08412,95293.0,95288.0,4.688e-05]
[1763157715938,0.08412,95293.0,95288.0,0.03377688]
[1763157716338,0.08412,95292.0,95288.0,4.688e-05]
[1763157719742,0.34268082,95291.0,95288.0,4.688e-05]
[1763157720082,0.323,95291.0,95288.0,4.688e-05]
[1763157720245,0.01968122,95290.0,95288.0,4.688e-05]
[1763157720445,0.01968122,95289.0,95288.0,4.688e-05]
[1763157720631,0.323,95291.0,95288.0,4.688e-05]
[1763157721300,0.01969171,95290.0,95288.0,4.688e-05]
[1763157721543,0.01969171,95289.0,95288.0,4.688e-05]
[1763157722400,0.01969171,95290.0,95288.0,4.688e-05]
[1763157722626,0.01969171,95289.0,95288.0,4.688e-05]
[1763157722937,0.323,95291.0,95288.0,0.00104688]
[1763157723058,0.01969821,95290.0,95288.0,0.00104688]
[1763157723254,0.01969821,95289.0,95288.0,0.00104688]
[1763157723458,0.01969821,95289.0,95288.0,4.688e-05]
[1763157723855,0.01969821,95290.0,95288.0,4.688e-05]
[1763157725093,0.01969821,95289.0,95288.0,4.688e-05]
[1763157725288,0.01969821,95292.0,95288.0,4.688e-05]
[1763157725492,0.01969821,95291.0,95288.0,4.688e-05]
[1763157725853,0.01969821,95290.0,95288.0,4.688e-05]
[1763157726133,0.01969821,95289.0,95288.0,4.688e-05]
[1763157726330,0.01969821,95292.0,95288.0,4.688e-05]
[1763157728416,0.01969821,95292.0,95289.0,0.03098]
[1763157728844,0.01969821,95292.0,95290.0,0.01639]
[1763157729201,0.01969821,95292.0,95291.0,0.03098]
[1763157729408,0.01969821,95292.0,95288.0,4.688e-05]
[1763157730080,0.01969821,95292.0,95290.0,0.001]
[1763157730654,0.01969821,95292.0,95288.0,4.688e-05]
[1763157730851,0.40712,95291.0,95288.0,4.688e-05]
[1763157731078,0.34269821,95290.0,95288.0,4.688e-05]
[1763157731255,0.01969821,95289.0,95288.0,4.688e-05]
[1763157732076,0.01969821,95289.0,95288.0,0.00104688]
[1763157732278,0.10381821,95289.0,95288.0,0.00104688]
[1763157732478,0.10381821,95289.0,95288.0,4.688e-05]
[1763157732878,0.10382543,95289.0,95288.0,0.00104688]
[1763157735101,0.10382543,95289.0,95288.0,20.00104688]
[1763157735969,0.42682543,95289.0,95288.0,19.98457497]
[1763157736401,0.34270543,95289.0,95288.0,19.98457497]
[1763157738434,0.34270543,95289.0,95288.0,20.08824435]
[1763157738798,0.34270543,95289.0,95288.0,19.98457497]
[1763157740731,0.42682543,95289.0,95288.0,19.98457497]
[1763157741089,0.34270543,95289.0,95288.0,19.98457497]
[1763157746384,0.34370543,95289.0,95288.0,19.98457497]
[1763157747184,0.34470543,95289.0,95288.0,19.98457497]
[1763157750822,0.51294543,95289.0,95288.0,19.98457497]
[1763157751406,0.54450466,95289.0,95288.0,19.98457497]
[1763157753026,0.37626466,95289.0,95288.0,19.98457497]
[1763157757082,0.37526466,95289.0,95288.0,19.98457497]
[1763157758144,0.37426466,95289.0,95288.0,19.98457497]
[1763157758529,0.37626466,95289.0,95288.0,19.98457497]
[1763157758953,0.37526466,95289.0,95288.0,19.98457497]
[1763157759404,0.37626466,95289.0,95288.0,19.98457497]
[1763157759688,0.37526466,95289.0,95288.0,19.98457497]
[1763157759830,0.37626466,95289.0,95288.0,19.98457497]
[1763157760744,0.54458466,95289.0,95288.0,19.98457497]
[1763157765274,0.46042466,95289.0,95288.0,19.98457497]
[1763157766348,0.46039651,95289.0,95288.0,19.98457497]
[1763157766491,0.37623651,95289.0,95288.0,19.98457497]
[1763157767820,0.37523651,95289.0,95288.0,19.98457497]
[1763157768029,0.37623651,95289.0,95288.0,19.98457497]
[1763157768682,0.37523651,95289.0,95288.0,19.98457497]
[1763157768937,0.37623651,95289.0,95288.0,19.98457497]
[1763157769165,0.37523651,95289.0,95288.0,19.98457497]
[1763157769386,0.37423651,95289.0,95288.0,19.98457497]
[1763157769679,0.37523651,95289.0,95288.0,19.98457497]
[1763157770782,0.54355651,95289.0,95288.0,19.98457497]
[1763157772267,0.52387923,95289.0,95288.0,19.98457497]
[1763157772506,0.54359858,95289.0,95288.0,19.98457497]
[1763157774032,0.45943858,95289.0,95288.0,19.98457497]
[1763157774722,0.43971923,95289.0,95288.0,19.98457497]
[1763157775490,0.45944545,95289.0,95288.0,19.98457497]
[1763157776175,0.37528545,95289.0,95288.0,19.98457497]
[1763157779257,0.37428545,95289.0,95288.0,19.98457497]
[1763157779496,0.37528545,95289.0,95288.0,19.98457497]
[1763157779848,0.37628224,95289.0,95288.0,19.98457497]
[1763157780848,0.54460224,95289.0,95288.0,19.98457497]
[1763157781767,0.56107733,95289.0,95288.0,19.98457497]
[1763157783163,0.54460224,95289.0,95288.0,19.98457497]
[1763157785835,0.46044224,95289.0,95288.0,19.98457497]
[1763157786036,0.54460224,95289.0,95288.0,19.98457497]
[1763157786252,0.56107709,95289.0,95288.0,19.98457497]
[1763157787086,0.03819786,95289.0,95288.0,19.98457497]
[1763157787983,0.03619786,95289.0,95288.0,19.98457497]
[1763157788378,0.03719786,95289.0,95288.0,19.98457497]
[1763157788606,0.03619786,95289.0,95288.0,19.98457497]
[1763157789195,0.01647485,95289.0,95288.0,19.98457497]
[1763157789548,0.01647485,95289.0,95288.0,20.08824435]
[1763157790105,0.01647485,95289.0,95288.0,19.98457497]
[1763157790734,0.10063485,95289.0,95288.0,19.98457497]
[1763157796542,0.08416,95289.0,95288.0,19.98457497]
[1763157798180,0.03179271,95298.0,95297.0,0.01979]
[1763157798181,0.00024719,95298.0,95297.0,0.01979]
[1763157798383,0.00024719,95298.0,95289.0,0.04341874]
[1763157798384,0.08436719,95298.0,95289.0,0.04341874]
[1763157798583,0.001,95312.0,95297.0,0.03496]
[1763157798847,0.001,95312.0,95297.0,0.01517]
[1763157798848,0.17869209,95311.0,95297.0,0.01517]
[1763157799063,0.17869209,95311.0,95310.0,0.01517]
[1763157799241,0.001,95312.0,95310.0,0.01517]
[1763157799242,0.001,95312.0,95311.0,0.04341874]
[1763157799456,0.08512,95312.0,95311.0,0.08548849]
[1763157799661,0.08512,95312.0,95311.0,0.05559849]
[1763157800768,0.08512,95312.0,95310.0,0.01517]
[1763157801129,0.09457209,95329.0,95319.0,0.01517]
[1763157801335,0.01646727,95312.0,95311.0,0.02989]
[1763157801531,0.01646727,95312.0,95311.0,0.035913]
[1763157801756,0.11565614,95328.0,95311.0,0.03089]
[1763157801967,0.11103964,95312.0,95311.0,0.001]
[1763157802171,0.09457209,95312.0,95304.0,0.00107]
[1763157802412,0.11104035,95312.0,95311.0,0.0003481]
[1763157803770,0.11644035,95312.0,95311.0,0.0003481]
[1763157804364,0.11104035,95312.0,95311.0,0.0003481]
[1763157804504,0.11644035,95312.0,95311.0,0.0003481]
[1763157804915,0.43944035,95312.0,95311.0,0.0003481]
[1763157805099,0.45904026,95312.0,95311.0,0.0003481]
[1763157807395,0.45364026,95312.0,95311.0,0.0003481]
[1763157807730,0.43404035,95312.0,95311.0,0.0003481]
[1763157808736,0.46393035,95312.0,95311.0,0.0003481]
[1763157809102,0.46431482,95312.0,95311.0,0.0302381]
[1763157809493,0.48392426,95312.0,95311.0,0.0302381]
[1763157809907,0.467456,95312.0,95311.0,0.0302381]
[1763157810109,0.12484656,95312.0,95311.0,0.0302381]
[1763157810286,0.11456599,95312.0,95311.0,0.0302381]
[1763157810694,0.17907656,95312.0,95311.0,0.0302381]
[1763157811283,0.17907656,95312.0,95311.0,0.0003481]
[1763157811760,0.19869042,95312.0,95311.0,0.0003481]
[1763157812013,0.17907656,95312.0,95311.0,0.0003481]
[1763157813234,0.19554472,95312.0,95311.0,0.0003481]
[1763157814438,0.21517479,95312.0,95311.0,0.0003481]
[1763157814843,0.22003479,95312.0,95311.0,0.0003481]
[1763157816838,0.54303479,95312.0,95311.0,0.0003481]
[1763157819208,0.45891479,95312.0,95311.0,0.0003481]
[1763157820271,0.45405479,95312.0,95311.0,0.0003481]
[1763157820409,0.45891479,95312.0,95311.0,0.0003481]
[1763157820789,0.54303479,95312.0,95311.0,0.0003481]
[1763157821563,0.33439941,95312.0,95311.0,0.0003481]
[1763157821788,0.10544911,95312.0,95311.0,0.0003481]
[1763157821987,0.08898,95312.0,95311.0,0.0003481]
[1763157823081,0.01999998,95340.0,95311.0,0.0003481]
[1763157823082,0.00486,95357.0,95312.0,0.06357]
[1763157823405,0.09457209,95368.0,95347.0,0.56843287]
[1763157823610,0.09457209,95368.0,95358.0,0.56843287]
[1763157823808,0.09457209,95368.0,95367.0,0.01947]
[1763157824658,0.09502414,95368.0,95367.0,0.01947]
[1763157825012,0.09502414,95368.0,95361.0,0.04341874]
[1763157825013,0.01791361,95368.0,95361.0,0.04341874]
[1763157825219,0.01691361,95368.0,95361.0,0.04341874]
[1763157825398,0.01691361,95368.0,95363.0,0.04341874]
[1763157825639,0.00045205,95368.0,95363.0,0.04341874]
[1763157825898,0.00045205,95368.0,95364.0,0.02845]
[1763157828238,0.00045205,95368.0,95365.0,0.04341874]
[1763157828441,0.00045205,95368.0,95366.0,0.06485291]
[1763157828636,0.00045205,95368.0,95367.0,0.04341874]
[1763157828843,0.00045205,95368.0,95367.0,0.07186874]
[1763157829115,0.00045205,95368.0,95367.0,0.04341874]
[1763157829334,0.00198881,95368.0,95367.0,0.04341874]
[1763157829507,0.00198881,95368.0,95367.0,0.0651242]
[1763157830730,0.08606881,95368.0,95367.0,0.0651242]
[1763157835505,0.08606881,95368.0,95367.0,0.09663897]
[1763157836527,0.08606881,95368.0,95367.0,0.24354779]
[1763157837822,0.08404,95368.0,95367.0,0.24354779]
[1763157838653,0.08404,95368.0,95367.0,0.56654779]
[1763157838850,0.0002,95380.0,95377.0,0.04341874]
[1763157839077,0.0002,95380.0,95379.0,0.01947]
[1763157839275,0.0002,95380.0,95378.0,0.12302209]
[1763157839484,0.0002,95380.0,95379.0,0.03265106]
[1763157839641,0.0002,95380.0,95379.0,0.50255988]
[1763157839849,0.0002,95380.0,95379.0,0.45696946]
[1763157840284,1.2011,95450.0,95409.0,0.03512]
[1763157840488,0.09457209,95429.0,95409.0,0.03512]
[1763157840765,0.2,95420.0,95409.0,0.03512]
[1763157840976,0.2,95420.0,95393.0,0.01464]
[1763157840977,0.01916,95410.0,95393.0,0.01464]
[1763157841114,0.01947027,95409.0,95393.0,0.01464]
[1763157841317,0.34247027,95409.0,95393.0,0.01464]
[1763157841529,0.34247027,95409.0,95393.0,4.685e-05]
[1763157841530,0.10415209,95394.0,95393.0,4.685e-05]
[1763157841742,0.44662815,95394.0,95393.0,4.685e-05]
[1763157842663,0.19808815,95394.0,95393.0,4.685e-05]
[1763157842862,0.10351606,95394.0,95393.0,4.685e-05]
[1763157843064,0.08404,95394.0,95393.0,4.685e-05]
[1763157845413,0.01645582,95408.0,95402.0,0.03354]
[1763157845689,0.01645582,95408.0,95407.0,0.0189]
[1763157845874,0.01645582,95408.0,95402.0,0.01464]
[1763157845875,0.08404,95407.0,95403.0,0.03074]
[1763157846086,0.08404,95407.0,95404.0,0.09911016]
[1763157846468,0.08404,95407.0,95405.0,0.03074]
[1763157847667,0.09457209,95406.0,95405.0,0.03074]
[1763157847906,0.09457209,95406.0,95395.0,0.01464]
[1763157848312,0.09457209,95406.0,95405.0,0.001]
[1763157848519,0.11407784,95406.0,95405.0,0.001]
[1763157848931,0.12365784,95406.0,95405.0,0.001]
[1763157849149,0.44665784,95406.0,95405.0,0.001]
[1763157849354,0.2,95400.0,95393.0,4.685e-05]
[1763157849541,0.00885,95394.0,95393.0,4.685e-05]
[1763157849844,0.02906884,95394.0,95393.0,4.685e-05]
[1763157850046,0.02021884,95394.0,95393.0,4.685e-05]
[1763157851133,0.02906884,95394.0,95393.0,4.685e-05]
[1763157853634,0.03006884,95394.0,95393.0,4.685e-05]
[1763157854234,0.03106884,95394.0,95393.0,4.685e-05]
[1763157854792,0.03119471,95394.0,95393.0,4.685e-05]
[1763157855415,0.04765194,95394.0,95393.0,4.685e-05]
[1763157857598,0.323,95369.0,95356.0,0.02250063]
[1763157857808,0.323,95369.0,95346.0,0.02784731]
[1763157857809,0.09457209,95357.0,95346.0,0.02784731]
[1763157858036,0.01963162,95356.0,95347.0,0.09770085]
[1763157858253,0.32313554,95369.0,95343.0,0.02824]
[1763157858254,0.0196281,95355.0,95348.0,0.02250251]
[1763157858468,0.09457209,95368.0,95349.0,0.02250251]
[1763157858688,0.09457209,95368.0,95350.0,0.04347786]
[1763157858904,0.09457209,95368.0,95351.0,0.0296743]
[1763157859119,0.09457209,95368.0,95352.0,0.04347742]
[1763157859348,0.09457209,95368.0,95353.0,0.02250251]
[1763157859533,0.09457209,95368.0,95354.0,0.04347698]
[1763157859816,0.09457209,95368.0,95355.0,0.02250251]
[1763157860030,0.09457209,95368.0,95356.0,0.02250251]
[1763157860252,0.00013554,95369.0,95367.0,0.0329]
[1763157860469,0.00013554,95369.0,95368.0,0.06253588]
[1763157860679,0.00013554,95369.0,95368.0,0.05299947]
[1763157860907,0.08417554,95369.0,95368.0,0.05299947]
[1763157861644,0.08417554,95369.0,95368.0,0.02248449]
[1763157861866,0.08417554,95369.0,95367.0,0.01382]
[1763157862081,0.09457209,95368.0,95367.0,0.01382]
[1763157863152,0.09457209,95368.0,95367.0,0.01482]
[1763157863574,0.09457209,95368.0,95367.0,0.0382939]
[1763157863911,0.09457209,95368.0,95367.0,0.04494729]
[1763157864352,0.09457209,95368.0,95367.0,0.02247339]
[1763157864558,0.09457209,95368.0,95367.0,0.01582]
[1763157866043,0.09457209,95368.0,95367.0,0.03828561]
[1763157867163,0.09457209,95368.0,95367.0,0.06652561]
[1763157867705,0.09457209,95368.0,95367.0,0.03828561]
[1763157867907,0.17861209,95368.0,95367.0,0.03828561]
[1763157868134,0.17861209,95368.0,95367.0,0.01582]
[1763157872025,0.17861209,95368.0,95367.0,0.03209288]
[1763157872504,0.09457209,95368.0,95367.0,0.03209288]
[1763157872701,0.17861209,95368.0,95367.0,0.03209288]
[1763157874435,0.17861209,95368.0,95367.0,0.05456562]
[1763157874862,0.17861209,95368.0,95367.0,0.01582]
[1763157875194,0.19823396,95368.0,95367.0,0.01582]
[1763157875403,0.19823396,95368.0,95367.0,0.002]
[1763157877290,0.21469077,95368.0,95367.0,0.002]
[1763157877641,0.21469077,95368.0,95367.0,0.02451528]
[1763157877841,0.21469077,95368.0,95367.0,0.002]
[1763157878455,0.21469077,95368.0,95367.0,0.02453037]
[1763157878655,0.21469077,95368.0,95367.0,0.03340361]
[1763157879848,0.21469077,95368.0,95367.0,0.02453037]
[1763157880046,0.21469077,95368.0,95367.0,0.04550198]
[1763157880047,0.08404,95368.0,95367.0,0.04550198]
[1763157880261,0.08404,95368.0,95367.0,0.02453037]
[1763157880653,0.08404,95368.0,95367.0,0.04550198]
[1763157880854,0.08404,95368.0,95367.0,0.07177947]
[1763157881702,0.00013554,95369.0,95368.0,0.36641874]
[1763157881926,0.84457695,95430.0,95377.0,0.04341874]
[1763157881927,0.00864,95424.0,95377.0,0.04341874]
[1763157882159,0.08404,95387.0,95379.0,0.04341874]
[1763157882416,0.08404,95387.0,95384.0,0.04341874]
[1763157882632,0.00024685,95386.0,95385.0,0.06594911]
[1763157882839,0.00024685,95386.0,95385.0,0.09521911]
[1763157883055,0.00024685,95386.0,95385.0,0.06594911]
[1763157883488,0.01669899,95386.0,95385.0,0.06594911]
[1763157883711,0.01669899,95386.0,95385.0,0.15200582]
[1763157884553,0.01669899,95386.0,95385.0,0.15300582]
[1763157885016,0.2,95430.0,95394.0,0.03412]
[1763157885017,0.09457209,95410.0,95394.0,0.03412]
[1763157885228,0.09457209,95410.0,95400.0,0.64457695]
[1763157885446,0.09457209,95410.0,95409.0,0.03412]
[1763157885895,0.1110236,95410.0,95409.0,0.03412]
[1763157886119,0.1110236,95410.0,95409.0,0.01396]
[1763157886691,0.11115881,95410.0,95409.0,0.01396]
[1763157887144,0.2,95430.0,95409.0,0.01396]
[1763157887339,0.09457209,95429.0,95418.0,0.01396]
[1763157887568,0.09457209,95429.0,95419.0,0.64457695]
[1763157887775,0.09457209,95429.0,95428.0,0.02016]
[1763157888823,0.09457209,95429.0,95424.0,0.01396]
[1763157889045,0.09457209,95429.0,95428.0,0.02016]
[1763157889252,0.10287209,95448.0,95433.0,0.02016]
[1763157889470,0.10287209,95448.0,95443.0,0.01396]
[1763157889682,0.10287209,95448.0,95443.0,0.03412]
[1763157889888,1.2011,95450.0,95443.0,0.03412]
[1763157890126,0.09457209,95447.0,95443.0,0.06339]
[1763157890497,1.0011,95450.0,95443.0,0.04303008]
[1763157890699,0.08426516,95444.0,95443.0,0.01376008]
[1763157890939,0.08526516,95444.0,95443.0,0.01376008]
[1763157891154,0.00122516,95444.0,95443.0,0.01376008]
[1763157891391,0.08526516,95444.0,95443.0,0.01376008]
[1763157891609,0.08526516,95444.0,95443.0,0.03610215]
[1763157891610,0.08426516,95444.0,95443.0,0.03610215]
[1763157892256,0.08426516,95444.0,95443.0,0.01376008]
[1763157893316,0.08426516,95444.0,95443.0,0.01476008]
[1763157893470,0.08426516,95444.0,95443.0,0.01576008]
[1763157894242,0.08426516,95444.0,95443.0,0.01376008]
[1763157895980,0.08585492,95444.0,95443.0,0.01376008]
[1763157896601,0.10230175,95444.0,95443.0,0.01376008]
[1763157897005,0.10230175,95444.0,95443.0,0.01476008]
[1763157897857,0.10226175,95444.0,95443.0,0.01476008]
[1763157899930,0.10226175,95444.0,95443.0,0.03571499]
[1763157900496,0.10226175,95444.0,95443.0,0.07913373]
[1763157900719,0.10226175,95444.0,95443.0,0.06748819]
[1763157901132,0.10226175,95444.0,95443.0,0.05817882]
[1763157901344,0.10226175,95444.0,95443.0,0.05717882]
[1763157901741,0.10226175,95444.0,95443.0,0.05917882]
[1763157902496,0.11870788,95444.0,95443.0,0.05917882]
[1763157903269,0.11870788,95444.0,95443.0,0.0814457]
[1763157903420,0.03470788,95444.0,95443.0,0.4578391]
[1763157903605,0.11870788,95444.0,95443.0,0.4578391]
[1763157903954,0.10226175,95444.0,95443.0,0.4578391]
[1763157905121,0.10226175,95444.0,95443.0,0.4044457]
[1763157905533,0.10226175,95444.0,95443.0,0.01576008]
[1763157906741,0.10226175,95444.0,95443.0,0.01376008]
[1763157909723,0.2,95440.0,95423.0,0.02884]
[1763157909904,0.2,95440.0,95411.0,0.01346]
[1763157909905,0.09457209,95425.0,95418.0,0.0428]
[1763157911341,0.11414028,95425.0,95418.0,0.0428]
[1763157911537,0.12901028,95425.0,95424.0,0.001]
[1763157911770,0.45201028,95425.0,95424.0,0.001]
[1763157912372,0.43714028,95425.0,95424.0,0.001]
[1763157912920,0.323,95424.0,95411.0,0.01346]
[1763157913115,0.01956819,95423.0,95411.0,0.01346]
[1763157913554,0.01956819,95423.0,95412.0,0.034416]
[1763157913760,0.01956819,95423.0,95422.0,0.01346]
[1763157914496,0.03601937,95423.0,95422.0,0.01346]
[1763157914697,0.03601937,95423.0,95412.0,0.02884]
[1763157914903,0.01956819,95422.0,95421.0,0.01346]
[1763157915278,0.01956819,95423.0,95421.0,0.01346]
[1763157915693,0.02056819,95423.0,95412.0,0.02884]
[1763157916025,0.02056819,95423.0,95394.0,0.01346]
[1763157916026,0.03192,95413.0,95394.0,0.01346]
[1763157916235,1.03953995,95410.0,95394.0,0.01346]
[1763157916435,0.09457209,95395.0,95394.0,0.01346]
[1763157916637,0.01645278,95409.0,95395.0,0.02884]
[1763157916882,0.01957813,95408.0,95394.0,0.01346]
[1763157917078,0.09457209,95395.0,95394.0,0.01346]
[1763157917277,0.09457209,95395.0,95394.0,0.0138081]
[1763157918237,0.09457209,95395.0,95394.0,0.0003481]
[1763157919022,0.132597,95395.0,95380.0,0.01346]
[1763157919239,0.01346,95389.0,95380.0,0.00013521]
[1763157920963,0.01645462,95387.0,95380.0,0.00013521]
[1763157922296,0.01645462,95387.0,95377.0,0.02884]
[1763157922434,0.12019209,95378.0,95350.0,0.04341874]
[1763157922639,0.12019209,95378.0,95363.0,0.01346]
[1763157925968,0.2,95370.0,95363.0,0.01346]
[1763157926215,0.02938,95377.0,95363.0,0.01346]
[1763157926854,0.2,95370.0,95363.0,0.01346]
[1763157927082,0.10173209,95378.0,95363.0,0.0423]
[1763157927889,0.02938,95377.0,95363.0,0.01346]
[1763157930072,0.01645693,95374.0,95363.0,0.01346]
[1763157931309,0.01645665,95372.0,95363.0,0.01346]
[1763157931800,0.4,95380.0,95363.0,0.01346]
[1763157931801,0.08404,95403.0,95389.0,0.09457209]
[1763157931996,0.01365,95447.0,95390.0,0.37587595]
[1763157931997,0.08404,95392.0,95390.0,0.37587595]
[1763157932215,0.01434,95442.0,95390.0,0.39587593]
[1763157932216,0.08404,95402.0,95390.0,0.39587593]
[1763157932442,0.08404,95402.0,95393.0,0.04341874]
[1763157932893,0.08404,95402.0,95396.0,0.36641874]
[1763157934379,0.08404,95402.0,95398.0,0.04341874]
[1763157936061,0.08404,95402.0,95398.0,0.04441874]
[1763157936279,0.08404,95402.0,95398.0,0.08187192]
[1763157936578,0.08404,95402.0,95400.0,0.04341874]
[1763157936810,0.08404,95402.0,95401.0,0.0499444]
[1763157938096,0.08404,95402.0,95401.0,0.0509444]
[1763157938295,0.08404,95402.0,95401.0,0.001]
[1763157939110,0.00024678,95404.0,95402.0,0.04341874]
[1763157939326,0.00024678,95404.0,95403.0,0.36641874]
[1763157939549,0.08424678,95404.0,95403.0,0.36641874]
[1763157939741,0.09457209,95438.0,95415.0,0.04341874]
[1763157940196,0.01644809,95433.0,95415.0,0.04341874]
[1763157940398,0.00032898,95416.0,95415.0,0.04341874]
[1763157940710,0.08432898,95416.0,95415.0,0.04341874]
[1763157940915,0.08432898,95416.0,95415.0,0.14708812]
[1763157941115,0.08432898,95416.0,95415.0,0.47008812]
[1763157941314,0.08432898,95416.0,95415.0,0.4980097]
[1763157941615,0.08432898,95416.0,95415.0,0.47108812]
[1763157941820,0.01644809,95433.0,95416.0,0.323]
[1763157942027,0.084,95432.0,95422.0,0.07132615]
[1763157942230,0.084,95432.0,95421.0,0.323]
[1763157942231,0.084,95432.0,95424.0,0.04341874]
[1763157942658,0.084,95432.0,95422.0,0.04341874]
[1763157943077,0.084,95432.0,95422.0,0.04389237]
[1763157944150,0.084,95432.0,95424.0,0.001]
[1763157944367,0.084,95432.0,95426.0,0.36641874]
[1763157945207,0.01644688,95431.0,95426.0,0.36641874]
[1763157945639,0.01644688,95431.0,95426.0,0.36741874]
[1763157946058,0.01644688,95431.0,95426.0,0.36641874]
[1763157946544,0.01644688,95431.0,95427.0,0.02095842]
[1763157946681,0.01644688,95431.0,95429.0,0.04341874]
[1763157947978,0.01644688,95431.0,95429.0,0.04441874]
[1763157948124,0.01644688,95431.0,95429.0,0.04541874]
[1763157948323,0.00038373,95430.0,95429.0,0.04541874]
[1763157949133,0.00038373,95430.0,95429.0,0.04441874]
[1763157949329,0.00038373,95430.0,95429.0,0.111191]
[1763157949572,0.00038373,95430.0,95429.0,0.04541874]
[1763157949927,0.00032837,95430.0,95429.0,0.04441874]
[1763157950339,0.00032837,95430.0,95429.0,0.04541874]
[1763157950791,0.00032837,95430.0,95429.0,0.19232756]
[1763157951242,0.00032837,95430.0,95429.0,0.21328554]
[1763157951451,0.00032837,95430.0,95429.0,0.27732839]
[1763157951680,0.00032837,95430.0,95429.0,0.25637041]
[1763157957085,0.08428837,95430.0,95429.0,0.25637041]
[1763157958436,0.08428837,95430.0,95429.0,0.28427782]
[1763157959319,0.08428837,95430.0,95429.0,0.25637041]
[1763157961332,0.08428837,95430.0,95429.0,0.002]
[1763157961969,0.10287837,95430.0,95429.0,0.002]
[1763157962181,0.1225189,95430.0,95429.0,0.002]
[1763157962588,0.1225189,95430.0,95429.0,0.001]
[1763157962733,0.1225189,95430.0,95425.0,0.02811743]
[1763157963052,0.11421262,95429.0,95425.0,0.02811743]
[1763157963282,0.01964053,95428.0,95425.0,0.02811743]
[1763157963813,0.01964053,95427.0,95425.0,0.02811743]
[1763157964057,0.01964053,95426.0,95425.0,0.02811743]
[1763157964429,0.09457209,95429.0,95425.0,0.02811743]
[1763157964430,0.01964053,95428.0,95425.0,0.02811743]
[1763157964644,0.01964053,95428.0,95425.0,0.02911743]
[1763157965458,0.01859,95426.0,95425.0,0.001]
[1763157965660,0.03823053,95426.0,95425.0,0.001]
[1763157965895,0.03823053,95426.0,95422.0,0.00047363]
[1763157966062,0.01964053,95425.0,95422.0,0.00047363]
[1763157967064,0.01426,95423.0,95422.0,0.00047363]
[1763157967494,0.03390053,95423.0,95422.0,0.00047363]
[1763157968100,0.01964053,95423.0,95422.0,0.00047363]
[1763157968301,0.01426,95426.0,95422.0,0.00047363]
[1763157968453,0.01964132,95425.0,95422.0,0.00047363]
[1763157969269,0.01964132,95424.0,95422.0,0.00047363]
[1763157969479,0.09457209,95429.0,95422.0,0.00047363]
[1763157969712,0.01963859,95428.0,95422.0,0.02143315]
[1763157969944,0.01963859,95427.0,95422.0,0.00047363]
[1763157970110,0.01963859,95426.0,95422.0,0.00047363]
[1763157970314,0.10363859,95425.0,95422.0,0.02143315]
[1763157970528,0.084,95425.0,95423.0,0.04907673]
[1763157970719,0.084,95425.0,95424.0,0.00870403]
[1763157971134,0.10044871,95425.0,95424.0,0.05778054]
[1763157971343,0.084,95425.0,95424.0,0.02095908]
[1763157972079,0.084,95425.0,95424.0,0.04341874]
[1763157972283,0.084,95425.0,95424.0,0.1205957]
[1763157972476,0.084,95425.0,95424.0,0.22426508]
[1763157972628,0.084,95425.0,95424.0,0.14708812]
[1763157972982,0.084,95425.0,95424.0,0.1680472]